[Event "Early-Titled-Tuesday-Blitz-May-07-2024"]
[Site "Chess.com"]
[Date "2024.05.07"]
[Round "6"]
[White "KorolDimitriy75"]
[Black "kacperkarwowski"]
[Result "1-0"]
[WhiteElo "2379"]
[BlackElo "2516"]
[TimeControl "180+1"]
[EndTime "9:12:08 PDT"]
[Termination "KorolDimitriy75 won by checkmate"]

1. d4 {[%clk 0:03:00.9]} 1... e5 {[%clk 0:02:52.8]} 2. dxe5 {[%clk 0:03:00.3]}
2... Bc5 {[%clk 0:02:50.1]} 3. Nf3 {[%clk 0:02:54.9]} 3... d6 {[%clk 0:02:49.8]}
4. Bf4 {[%clk 0:02:51.9]} 4... Ne7 {[%clk 0:02:32.3]} 5. exd6 {[%clk 0:02:42.6]}
5... Ng6 {[%clk 0:02:29.5]} 6. Bg3 {[%clk 0:02:37]} 6... cxd6 {[%clk 0:02:25.7]}
7. e3 {[%clk 0:02:32.7]} 7... Qb6 {[%clk 0:02:15]} 8. b3 {[%clk 0:02:24]} 8...
h5 {[%clk 0:01:59]} 9. h3 {[%clk 0:02:06.2]} 9... h4 {[%clk 0:01:54.8]} 10. Bh2
{[%clk 0:02:06.2]} 10... a5 {[%clk 0:01:39.8]} 11. Be2 {[%clk 0:01:56.4]} 11...
a4 {[%clk 0:01:38.7]} 12. Nbd2 {[%clk 0:01:44.4]} 12... Be6 {[%clk 0:01:32.7]}
13. O-O {[%clk 0:01:41.5]} 13... Nc6 {[%clk 0:01:12.9]} 14. Ne4 {[%clk
0:01:35.1]} 14... O-O {[%clk 0:01:03]} 15. Bxd6 {[%clk 0:01:20.6]} 15... Bxd6
{[%clk 0:00:51.1]} 16. Qxd6 {[%clk 0:01:19.4]} 16... Rfd8 {[%clk 0:00:49]} 17.
Qc5 {[%clk 0:01:13.3]} 17... Qc7 {[%clk 0:00:39.4]} 18. Rad1 {[%clk 0:00:48.2]}
18... Rdc8 {[%clk 0:00:22.1]} 19. Neg5 {[%clk 0:00:20.6]} 19... Bd7 {[%clk
0:00:10.2]} 20. Bc4 {[%clk 0:00:17.7]} 20... Be8 {[%clk 0:00:10.7]} 21. Qf5
{[%clk 0:00:16.8]} 21... Ra5 {[%clk 0:00:10]} 22. Rd5 {[%clk 0:00:16]} 22...
Rxd5 {[%clk 0:00:09.6]} 23. Bxd5 {[%clk 0:00:16.1]} 23... Nce7 {[%clk 0:00:10]}
24. Qd3 {[%clk 0:00:13.9]} 24... Rd8 {[%clk 0:00:08.5]} 25. c4 {[%clk
0:00:13.5]} 25... Nxd5 {[%clk 0:00:08.5]} 26. cxd5 {[%clk 0:00:13.5]} 26... axb3
{[%clk 0:00:09.2]} 27. axb3 {[%clk 0:00:13.9]} 27... Qa5 {[%clk 0:00:08.6]} 28.
Rd1 {[%clk 0:00:13.4]} 28... Bb5 {[%clk 0:00:09]} 29. Qd4 {[%clk 0:00:13.1]}
29... Qa3 {[%clk 0:00:05.4]} 30. b4 {[%clk 0:00:12.7]} 30... Ba4 {[%clk
0:00:03.3]} 31. Ra1 {[%clk 0:00:12.7]} 31... Qb3 {[%clk 0:00:03.8]} 32. Nd2
{[%clk 0:00:12.2]} 32... Qxd5 {[%clk 0:00:03.2]} 33. Qxd5 {[%clk 0:00:12.3]}
33... Rxd5 {[%clk 0:00:04.1]} 34. Rxa4 {[%clk 0:00:12.3]} 34... Rxd2 {[%clk
0:00:04.8]} 35. Ra8+ {[%clk 0:00:12.5]} 35... Nf8 {[%clk 0:00:05.4]} 36. Rb8
{[%clk 0:00:12.2]} 36... Rd7 {[%clk 0:00:06]} 37. Ne4 {[%clk 0:00:11.5]} 37...
f6 {[%clk 0:00:06.1]} 38. Nc5 {[%clk 0:00:11.5]} 38... Rd1+ {[%clk 0:00:06.8]}
39. Kh2 {[%clk 0:00:11.1]} 39... Kf7 {[%clk 0:00:07.5]} 40. Rxb7+ {[%clk
0:00:11]} 40... Kg6 {[%clk 0:00:08.2]} 41. f3 {[%clk 0:00:11.1]} 41... Rd2
{[%clk 0:00:08]} 42. Rb8 {[%clk 0:00:10.7]} 42... Nd7 {[%clk 0:00:08.5]} 43. Rd8
{[%clk 0:00:08.9]} 43... Rb2 {[%clk 0:00:07]} 44. Rxd7 {[%clk 0:00:08.2]} 44...
Rxb4 {[%clk 0:00:07.9]} 45. Ne4 {[%clk 0:00:08]} 45... f5 {[%clk 0:00:07.7]} 46.
Nf2 {[%clk 0:00:06.8]} 46... Kh6 {[%clk 0:00:07]} 47. Nd3 {[%clk 0:00:06.8]}
47... g6 {[%clk 0:00:07.1]} 48. Rd6 {[%clk 0:00:06.9]} 48... Rb7 {[%clk
0:00:04.3]} 49. Nf4 {[%clk 0:00:06.7]} 49... Rg7 {[%clk 0:00:04.2]} 50. Kg1
{[%clk 0:00:06.6]} 50... Kg5 {[%clk 0:00:04.5]} 51. Ne6+ {[%clk 0:00:05.8]}
51... Kf6 {[%clk 0:00:04.6]} 52. Nxg7+ {[%clk 0:00:06.7]} 52... Kg5 {[%clk
0:00:05.1]} 53. Ne6+ {[%clk 0:00:05.8]} 53... Kh5 {[%clk 0:00:05]} 54. Nf4+
{[%clk 0:00:05.7]} 54... Kg5 {[%clk 0:00:05.2]} 55. Rxg6# {[%clk 0:00:05.5]} 1-0

[Event "Early-Titled-Tuesday-Blitz-May-07-2024"]
[Site "Chess.com"]
[Date "2024.05.07"]
[Round "6"]
[White "ValentinDragnev"]
[Black "Irishchessman16"]
[Result "1/2-1/2"]
[WhiteElo "2718"]
[BlackElo "2552"]
[TimeControl "180+1"]
[EndTime "9:12:09 PDT"]
[Termination "Game drawn by repetition"]

1. e4 {[%clk 0:02:58.5]} 1... c5 {[%clk 0:02:58.9]} 2. Nf3 {[%clk 0:02:58.4]}
2... Nc6 {[%clk 0:02:59.5]} 3. Nc3 {[%clk 0:02:58.4]} 3... e5 {[%clk 0:02:58.4]}
4. Bc4 {[%clk 0:02:57.9]} 4... Be7 {[%clk 0:02:58.1]} 5. d3 {[%clk 0:02:58.4]}
5... d6 {[%clk 0:02:58.5]} 6. Nd2 {[%clk 0:02:59.1]} 6... Nf6 {[%clk 0:02:58]}
7. Nf1 {[%clk 0:02:59.6]} 7... Bg4 {[%clk 0:02:58.3]} 8. f3 {[%clk 0:02:59.2]}
8... Be6 {[%clk 0:02:58.9]} 9. Ne3 {[%clk 0:02:59.8]} 9... O-O {[%clk
0:02:58.2]} 10. O-O {[%clk 0:03:00.4]} 10... a6 {[%clk 0:02:58.5]} 11. a4 {[%clk
0:03:00.6]} 11... Rc8 {[%clk 0:02:53]} 12. Ned5 {[%clk 0:03:00.1]} 12... Nd4
{[%clk 0:02:49.6]} 13. f4 {[%clk 0:02:54.7]} 13... Nxd5 {[%clk 0:02:41.4]} 14.
Nxd5 {[%clk 0:02:46.4]} 14... exf4 {[%clk 0:02:37.4]} 15. Bxf4 {[%clk
0:02:34.4]} 15... Bg5 {[%clk 0:02:36.8]} 16. c3 {[%clk 0:01:15]} 16... Nc6
{[%clk 0:02:18.3]} 17. Qh5 {[%clk 0:01:14.3]} 17... Bxf4 {[%clk 0:02:13.5]} 18.
Rxf4 {[%clk 0:01:15]} 18... Ne5 {[%clk 0:02:09]} 19. Raf1 {[%clk 0:00:56.5]}
19... b5 {[%clk 0:01:57.9]} 20. axb5 {[%clk 0:00:52.9]} 20... axb5 {[%clk
0:01:58.8]} 21. Rh4 {[%clk 0:00:30.7]} 21... h6 {[%clk 0:01:51.8]} 22. Nf6+
{[%clk 0:00:30.9]} 22... Kh8 {[%clk 0:01:44.9]} 23. Qg5 {[%clk 0:00:31.3]} 23...
Ng4 {[%clk 0:01:37.7]} 24. Bxe6 {[%clk 0:00:20.1]} 24... fxe6 {[%clk 0:01:33.2]}
25. Qxg4 {[%clk 0:00:16.2]} 25... Rxf6 {[%clk 0:01:33.5]} 26. Rh3 {[%clk
0:00:12.7]} 26... Rxf1+ {[%clk 0:01:31.4]} 27. Kxf1 {[%clk 0:00:13.6]} 27...
Qf6+ {[%clk 0:01:26.2]} 28. Rf3 {[%clk 0:00:13.5]} 28... Qe5 {[%clk 0:01:26.4]}
29. Rf7 {[%clk 0:00:10.8]} 29... Ra8 {[%clk 0:01:23.5]} 30. g3 {[%clk
0:00:08.7]} 30... b4 {[%clk 0:01:22.3]} 31. Qf4 {[%clk 0:00:07.7]} 31... Qxf4+
{[%clk 0:01:11.7]} 32. gxf4 {[%clk 0:00:08.6]} 32... Ra1+ {[%clk 0:01:08.6]} 33.
Ke2 {[%clk 0:00:09]} 33... Rb1 {[%clk 0:01:07]} 34. cxb4 {[%clk 0:00:08.5]}
34... Rxb2+ {[%clk 0:01:07.1]} 35. Ke3 {[%clk 0:00:08.9]} 35... Rxb4 {[%clk
0:00:58.3]} 36. Re7 {[%clk 0:00:09.3]} 36... d5 {[%clk 0:00:48.4]} 37. Rxe6
{[%clk 0:00:09.7]} 37... d4+ {[%clk 0:00:44.3]} 38. Kf3 {[%clk 0:00:10.2]} 38...
Rb3 {[%clk 0:00:43.9]} 39. Ke2 {[%clk 0:00:09.7]} 39... Rb2+ {[%clk 0:00:44.1]}
40. Ke1 {[%clk 0:00:10]} 40... Rxh2 {[%clk 0:00:39.9]} 41. Rc6 {[%clk
0:00:10.3]} 41... Rc2 {[%clk 0:00:39.5]} 42. e5 {[%clk 0:00:10.3]} 42... Kg8
{[%clk 0:00:39.5]} 43. e6 {[%clk 0:00:09.6]} 43... Kf8 {[%clk 0:00:39.6]} 44.
Rc7 {[%clk 0:00:10]} 44... h5 {[%clk 0:00:36.7]} 45. f5 {[%clk 0:00:08.9]} 45...
h4 {[%clk 0:00:34.8]} 46. Rf7+ {[%clk 0:00:09.6]} 46... Kg8 {[%clk 0:00:31.7]}
47. Rc7 {[%clk 0:00:10.1]} 47... h3 {[%clk 0:00:19.5]} 48. Rc8+ {[%clk
0:00:09.8]} 48... Kh7 {[%clk 0:00:19.4]} 49. e7 {[%clk 0:00:10.7]} 49... h2
{[%clk 0:00:19.4]} 50. Rh8+ {[%clk 0:00:11.2]} 50... Kxh8 {[%clk 0:00:17.1]} 51.
e8=Q+ {[%clk 0:00:12.1]} 51... Kh7 {[%clk 0:00:17]} 52. Qh5+ {[%clk 0:00:12.6]}
52... Kg8 {[%clk 0:00:16.9]} 53. Qe8+ {[%clk 0:00:10.4]} 53... Kh7 {[%clk
0:00:17]} 54. Qh5+ {[%clk 0:00:11.3]} 54... Kg8 {[%clk 0:00:17.5]} 55. Kd1
{[%clk 0:00:12.2]} 55... Rg2 {[%clk 0:00:16.2]} 56. Qe8+ {[%clk 0:00:10.4]}
56... Kh7 {[%clk 0:00:16.6]} 57. Qh5+ {[%clk 0:00:11.3]} 57... Kg8 {[%clk
0:00:16.5]} 58. Qe8+ {[%clk 0:00:10.8]} 58... Kh7 {[%clk 0:00:16.9]} 59. Qh5+
{[%clk 0:00:10.6]} 59... Kg8 {[%clk 0:00:17.2]} 1/2-1/2

[Event "Early-Titled-Tuesday-Blitz-May-07-2024"]
[Site "Chess.com"]
[Date "2024.05.07"]
[Round "6"]
[White "Kotlyar_K"]
[Black "DeArron_Fox"]
[Result "0-1"]
[WhiteElo "2661"]
[BlackElo "2523"]
[TimeControl "180+1"]
[EndTime "9:12:09 PDT"]
[Termination "DeArron_Fox won by checkmate"]

1. d4 {[%clk 0:03:00.9]} 1... d5 {[%clk 0:02:59.6]} 2. c4 {[%clk 0:02:59.5]}
2... e6 {[%clk 0:02:59.5]} 3. Nc3 {[%clk 0:02:59.6]} 3... Nf6 {[%clk 0:02:59.3]}
4. cxd5 {[%clk 0:02:59.9]} 4... exd5 {[%clk 0:03:00.2]} 5. Bg5 {[%clk
0:02:59.9]} 5... c6 {[%clk 0:02:59.5]} 6. Qc2 {[%clk 0:02:58.2]} 6... Be7 {[%clk
0:02:56.5]} 7. e3 {[%clk 0:02:52.1]} 7... Nbd7 {[%clk 0:02:56.9]} 8. h3 {[%clk
0:02:46]} 8... Nh5 {[%clk 0:02:52]} 9. Bxe7 {[%clk 0:02:36.4]} 9... Qxe7 {[%clk
0:02:52.9]} 10. Be2 {[%clk 0:02:37.3]} 10... Nhf6 {[%clk 0:02:47.7]} 11. Bd3
{[%clk 0:02:37]} 11... g6 {[%clk 0:02:26.9]} 12. Nf3 {[%clk 0:02:25.1]} 12...
Nh5 {[%clk 0:02:20.9]} 13. O-O-O {[%clk 0:02:17.1]} 13... Nb6 {[%clk 0:02:20.2]}
14. Ne5 {[%clk 0:02:10.5]} 14... Be6 {[%clk 0:02:16.7]} 15. g4 {[%clk
0:02:06.2]} 15... Ng7 {[%clk 0:02:14.7]} 16. f4 {[%clk 0:02:06]} 16... f6 {[%clk
0:02:13.8]} 17. Nf3 {[%clk 0:02:03.3]} 17... O-O-O {[%clk 0:02:09]} 18. Rhe1
{[%clk 0:02:03.1]} 18... Kb8 {[%clk 0:02:04.1]} 19. Kb1 {[%clk 0:02:02.7]} 19...
h5 {[%clk 0:01:54.8]} 20. Nh4 {[%clk 0:02:00.8]} 20... Rh6 {[%clk 0:01:07.3]}
21. Nxg6 {[%clk 0:01:57.6]} 21... Qe8 {[%clk 0:00:48.5]} 22. g5 {[%clk
0:01:46.4]} 22... fxg5 {[%clk 0:00:46.9]} 23. fxg5 {[%clk 0:01:47.3]} 23... Rh7
{[%clk 0:00:47.5]} 24. Rf1 {[%clk 0:01:35.6]} 24... Nd7 {[%clk 0:00:25.1]} 25.
Rde1 {[%clk 0:01:07.4]} 25... Bxh3 {[%clk 0:00:20.9]} 26. Qh2+ {[%clk 0:01:07]}
26... Ka8 {[%clk 0:00:15.9]} 27. Qxh3 {[%clk 0:01:05.4]} 27... Ne6 {[%clk
0:00:14.4]} 28. Nf4 {[%clk 0:01:01.6]} 28... Nxg5 {[%clk 0:00:12.5]} 29. Qh4
{[%clk 0:00:59.3]} 29... Rg7 {[%clk 0:00:12.2]} 30. Qxh5 {[%clk 0:00:59.4]}
30... Qg8 {[%clk 0:00:04.7]} 31. Rg1 {[%clk 0:00:56.3]} 31... Nf6 {[%clk
0:00:04.3]} 32. Qh4 {[%clk 0:00:51.9]} 32... Nf3 {[%clk 0:00:04.3]} 33. Qxf6
{[%clk 0:00:42.4]} 33... Rxg1 {[%clk 0:00:04]} 34. Rxg1 {[%clk 0:00:28.6]} 34...
Qxg1+ {[%clk 0:00:04.9]} 35. Kc2 {[%clk 0:00:29.1]} 35... Ne1+ {[%clk
0:00:02.4]} 36. Kb3 {[%clk 0:00:29.1]} 36... Rc8 {[%clk 0:00:01.7]} 37. Bf5
{[%clk 0:00:27.1]} 37... Rb8 {[%clk 0:00:02.1]} 38. Ne6 {[%clk 0:00:25.7]} 38...
a6 {[%clk 0:00:02.6]} 39. Qe7 {[%clk 0:00:19.9]} 39... Nf3 {[%clk 0:00:02.6]}
40. Nc7+ {[%clk 0:00:18.2]} 40... Ka7 {[%clk 0:00:03.2]} 41. Qc5+ {[%clk
0:00:18.7]} 41... b6 {[%clk 0:00:03.8]} 42. Qxc6 {[%clk 0:00:19.3]} 42... Qxe3
{[%clk 0:00:02.8]} 43. Qd7 {[%clk 0:00:03.1]} 43... Nxd4+ {[%clk 0:00:02.5]} 44.
Ka3 {[%clk 0:00:03.8]} 44... Rb7 {[%clk 0:00:01.1]} 45. Nb5+ {[%clk 0:00:03.7]}
45... Nxb5+ {[%clk 0:00:01.3]} 46. Qxb5 {[%clk 0:00:03.3]} 46... axb5 {[%clk
0:00:02.2]} 47. Kb3 {[%clk 0:00:03.7]} 47... d4 {[%clk 0:00:02.6]} 48. Be4
{[%clk 0:00:03.8]} 48... dxc3 {[%clk 0:00:03.5]} 49. Bxb7 {[%clk 0:00:04.7]}
49... cxb2+ {[%clk 0:00:03.4]} 50. Kxb2 {[%clk 0:00:05.6]} 50... Kxb7 {[%clk
0:00:03.9]} 51. Ka1 {[%clk 0:00:06.1]} 51... Kc6 {[%clk 0:00:04.8]} 52. Kb2
{[%clk 0:00:07]} 52... Kc5 {[%clk 0:00:05.7]} 53. Ka1 {[%clk 0:00:07.9]} 53...
Kc4 {[%clk 0:00:06.3]} 54. Kb2 {[%clk 0:00:08.8]} 54... Qd2+ {[%clk 0:00:06.5]}
55. Kb1 {[%clk 0:00:09.1]} 55... Kc3 {[%clk 0:00:07]} 56. a3 {[%clk 0:00:10]}
56... Qb2# {[%clk 0:00:07.3]} 0-1

[Event "Early-Titled-Tuesday-Blitz-May-07-2024"]
[Site "Chess.com"]
[Date "2024.05.07"]
[Round "6"]
[White "MatthewG-p4p"]
[Black "AlexanderKing"]
[Result "1-0"]
[WhiteElo "2874"]
[BlackElo "2580"]
[TimeControl "180+1"]
[EndTime "9:12:10 PDT"]
[Termination "MatthewG-p4p won on time"]

1. f4 {[%clk 0:02:55.9]} 1... c5 {[%clk 0:02:48.6]} 2. Nf3 {[%clk 0:02:56.2]}
2... Nc6 {[%clk 0:02:49]} 3. g3 {[%clk 0:02:56.9]} 3... g6 {[%clk 0:02:41.6]} 4.
Bg2 {[%clk 0:02:57.2]} 4... Bg7 {[%clk 0:02:42.2]} 5. O-O {[%clk 0:02:58]} 5...
Nf6 {[%clk 0:02:38.6]} 6. d3 {[%clk 0:02:58.3]} 6... d5 {[%clk 0:02:22.5]} 7.
Nc3 {[%clk 0:02:53.8]} 7... d4 {[%clk 0:02:17.9]} 8. Na4 {[%clk 0:02:53.8]} 8...
Nd7 {[%clk 0:02:10.1]} 9. c4 {[%clk 0:02:53.5]} 9... Rb8 {[%clk 0:02:05.2]} 10.
Bd2 {[%clk 0:02:37.7]} 10... b6 {[%clk 0:01:54.7]} 11. a3 {[%clk 0:02:34.1]}
11... Qc7 {[%clk 0:01:45.4]} 12. b4 {[%clk 0:02:33.1]} 12... Bb7 {[%clk
0:01:35.2]} 13. Rb1 {[%clk 0:02:32.8]} 13... O-O {[%clk 0:01:28.2]} 14. e4
{[%clk 0:02:12]} 14... dxe3 {[%clk 0:01:04.6]} 15. Bxe3 {[%clk 0:02:12.4]} 15...
Nd4 {[%clk 0:00:20]} 16. Bxd4 {[%clk 0:02:10.7]} 16... cxd4 {[%clk 0:00:18.7]}
17. Re1 {[%clk 0:02:02.8]} 17... Rfe8 {[%clk 0:00:18.6]} 18. Ng5 {[%clk
0:01:50.3]} 18... Bxg2 {[%clk 0:00:15.9]} 19. Kxg2 {[%clk 0:01:51.2]} 19... h6
{[%clk 0:00:14.2]} 20. Nf3 {[%clk 0:01:42.2]} 20... Rbd8 {[%clk 0:00:04.5]} 21.
Rc1 {[%clk 0:01:38.1]} 21... e5 {[%clk 0:00:04.4]} 22. fxe5 {[%clk 0:01:38.4]}
22... Nxe5 {[%clk 0:00:04.9]} 23. c5 {[%clk 0:01:35.3]} 23... b5 {[%clk
0:00:03.3]} 24. Nb2 {[%clk 0:01:34.6]} 24... Qc6 {[%clk 0:00:02.6]} 25. h3
{[%clk 0:01:28.9]} 25... h5 {[%clk 0:00:01.7]} 26. Kf2 {[%clk 0:01:28.9]} 26...
Nxf3 {[%clk 0:00:01.4]} 27. Qxf3 {[%clk 0:01:29.8]} 27... Qd7 {[%clk 0:00:01.2]}
28. Kg2 {[%clk 0:01:27]} 28... Qc7 {[%clk 0:00:01.4]} 29. c6 {[%clk 0:01:21.7]}
29... Rxe1 {[%clk 0:00:01.4]} 30. Rxe1 {[%clk 0:01:22.6]} 30... Rc8 {[%clk
0:00:01.7]} 31. Rc1 {[%clk 0:01:20.1]} 31... a5 {[%clk 0:00:02.2]} 32. Rc5
{[%clk 0:01:13.3]} 32... axb4 {[%clk 0:00:02.5]} 33. axb4 {[%clk 0:01:14.2]}
33... Bf8 {[%clk 0:00:03]} 34. Rxb5 {[%clk 0:01:14.6]} 34... Qxc6 {[%clk
0:00:03.1]} 35. Qxc6 {[%clk 0:01:15.5]} 35... Rxc6 {[%clk 0:00:04]} 36. Nc4
{[%clk 0:01:16.4]} 36... Kg7 {[%clk 0:00:02.4]} 37. Rb7 {[%clk 0:01:15.8]} 37...
Rf6 {[%clk 0:00:00.9]} 38. b5 {[%clk 0:01:12.4]} 38... Re6 {[%clk 0:00:01.4]}
39. b6 {[%clk 0:01:09.5]} 39... Re2+ {[%clk 0:00:01.5]} 40. Kf3 {[%clk
0:01:09.7]} 40... Rc2 {[%clk 0:00:01.7]} 41. Rd7 {[%clk 0:01:05]} 41... Rc3
{[%clk 0:00:01.2]} 42. Ne5 {[%clk 0:00:59.2]} 42... Rb3 {[%clk 0:00:01]} 43.
Rxf7+ {[%clk 0:00:59.1]} 43... Kg8 {[%clk 0:00:01.7]} 44. Ke4 {[%clk 0:00:54.1]}
44... Bd6 {[%clk 0:00:01.8]} 45. Rf6 {[%clk 0:00:52.9]} 45... Bxe5 {[%clk
0:00:01.7]} 46. Kxe5 {[%clk 0:00:52.8]} 46... Kg7 {[%clk 0:00:01.5]} 47. Rd6
{[%clk 0:00:48.7]} 47... Rxd3 {[%clk 0:00:02]} 48. Rxd4 {[%clk 0:00:35.7]} 48...
Rxg3 {[%clk 0:00:01.6]} 49. Rb4 {[%clk 0:00:33]} 49... Re3+ {[%clk 0:00:01.4]}
50. Kd6 {[%clk 0:00:27.8]} 50... Rd3+ {[%clk 0:00:01.2]} 51. Kc7 {[%clk
0:00:20.8]} 51... Rc3+ {[%clk 0:00:01.2]} 52. Kd7 {[%clk 0:00:15]} 52... Rd3+
{[%clk 0:00:01.5]} 53. Kc8 {[%clk 0:00:15.7]} 53... Rc3+ {[%clk 0:00:01.6]} 54.
Kb8 {[%clk 0:00:15.3]} 54... g5 {[%clk 0:00:02.1]} 55. b7 {[%clk 0:00:15.4]}
55... Kg6 {[%clk 0:00:01.3]} 56. Ka7 {[%clk 0:00:15]} 56... Ra3+ {[%clk
0:00:00.7]} 57. Kb6 {[%clk 0:00:15.5]} 57... Rf3 {[%clk 0:00:00.6]} 58. b8=Q
{[%clk 0:00:15.4]} 1-0

[Event "Early-Titled-Tuesday-Blitz-May-07-2024"]
[Site "Chess.com"]
[Date "2024.05.07"]
[Round "6"]
[White "ilqar_74"]
[Black "doctorcristian"]
[Result "1/2-1/2"]
[WhiteElo "2819"]
[BlackElo "2584"]
[TimeControl "180+1"]
[EndTime "9:12:11 PDT"]
[Termination "Game drawn by repetition"]

1. e4 {[%clk 0:03:00.9]} 1... e6 {[%clk 0:02:40.3]} 2. d4 {[%clk 0:03:00]} 2...
d5 {[%clk 0:02:41.2]} 3. Nc3 {[%clk 0:02:57.9]} 3... Bb4 {[%clk 0:02:40.6]} 4.
e5 {[%clk 0:02:57.5]} 4... c5 {[%clk 0:02:39.4]} 5. a3 {[%clk 0:02:58.1]} 5...
Bxc3+ {[%clk 0:02:36.9]} 6. bxc3 {[%clk 0:02:59]} 6... Qa5 {[%clk 0:02:37.1]} 7.
Bd2 {[%clk 0:02:58.1]} 7... Qa4 {[%clk 0:02:36.9]} 8. Bd3 {[%clk 0:02:55.3]}
8... c4 {[%clk 0:02:35.8]} 9. Be2 {[%clk 0:02:53.5]} 9... Nc6 {[%clk 0:02:36]}
10. Nh3 {[%clk 0:02:54.1]} 10... Bd7 {[%clk 0:02:35]} 11. O-O {[%clk 0:02:54.6]}
11... O-O-O {[%clk 0:02:34.2]} 12. Ng5 {[%clk 0:02:54.7]} 12... Nh6 {[%clk
0:02:33.9]} 13. f4 {[%clk 0:02:54.9]} 13... Rdf8 {[%clk 0:02:32.8]} 14. Rb1
{[%clk 0:02:51.4]} 14... f5 {[%clk 0:02:32.1]} 15. Qc1 {[%clk 0:02:49.2]} 15...
Nf7 {[%clk 0:02:29.3]} 16. Nf3 {[%clk 0:02:49]} 16... h6 {[%clk 0:02:28.2]} 17.
h4 {[%clk 0:02:48.5]} 17... Rhg8 {[%clk 0:02:27.9]} 18. h5 {[%clk 0:02:48.7]}
18... g6 {[%clk 0:02:28]} 19. hxg6 {[%clk 0:02:49.2]} 19... Rxg6 {[%clk
0:02:27.9]} 20. Nh4 {[%clk 0:02:49.9]} 20... Rg3 {[%clk 0:02:25.9]} 21. Be1
{[%clk 0:02:50]} 21... Rg7 {[%clk 0:02:23.1]} 22. Kh2 {[%clk 0:02:49.9]} 22...
Rfg8 {[%clk 0:02:23]} 23. g3 {[%clk 0:02:49.3]} 23... Kc7 {[%clk 0:02:14]} 24.
Rg1 {[%clk 0:02:49.2]} 24... Nh8 {[%clk 0:02:10.2]} 25. g4 {[%clk 0:02:38.3]}
25... Ne7 {[%clk 0:02:01.7]} 26. Bg3 {[%clk 0:02:17]} 26... Nhg6 {[%clk
0:01:41.5]} 27. Nxg6 {[%clk 0:02:10.5]} 27... Rxg6 {[%clk 0:01:40.9]} 28. Bh4
{[%clk 0:02:09.6]} 28... Nc6 {[%clk 0:01:31]} 29. g5 {[%clk 0:01:53]} 29... hxg5
{[%clk 0:01:30.3]} 30. Bxg5 {[%clk 0:01:53.6]} 30... Rh8+ {[%clk 0:01:28.8]} 31.
Kg3 {[%clk 0:01:53.8]} 31... Nd8 {[%clk 0:01:26.8]} 32. Rb4 {[%clk 0:01:46.3]}
32... Qc6 {[%clk 0:01:23]} 33. Rh1 {[%clk 0:01:45.4]} 33... Rhg8 {[%clk
0:01:12.8]} 34. Rh7 {[%clk 0:01:43]} 34... R6g7 {[%clk 0:01:12.5]} 35. Rxg7
{[%clk 0:01:40.3]} 35... Rxg7 {[%clk 0:01:12.6]} 36. Bh5 {[%clk 0:01:27.4]}
36... Be8 {[%clk 0:01:11.7]} 37. Qh1 {[%clk 0:01:25.6]} 37... Bxh5 {[%clk
0:01:10.9]} 38. Qxh5 {[%clk 0:01:26.5]} 38... Nf7 {[%clk 0:01:11.3]} 39. Kf2
{[%clk 0:01:22.3]} 39... Nxg5 {[%clk 0:01:10.3]} 40. fxg5 {[%clk 0:01:21.8]}
40... b6 {[%clk 0:01:10.2]} 41. Qh6 {[%clk 0:01:20.5]} 41... Qd7 {[%clk
0:01:09.8]} 42. g6 {[%clk 0:01:17.7]} 42... Rg8 {[%clk 0:01:08.4]} 43. Rb1
{[%clk 0:01:07.8]} 43... Qg7 {[%clk 0:01:08.1]} 44. Rh1 {[%clk 0:01:08.4]} 44...
Qxg6 {[%clk 0:01:07]} 45. Qxg6 {[%clk 0:01:06.6]} 45... Rxg6 {[%clk 0:01:07.2]}
46. Rh7+ {[%clk 0:01:07.2]} 46... Kb8 {[%clk 0:01:07]} 47. Rf7 {[%clk
0:01:06.9]} 47... Rh6 {[%clk 0:01:03.8]} 48. Kg2 {[%clk 0:01:02.3]} 48... Rg6+
{[%clk 0:01:02.8]} 49. Kf2 {[%clk 0:01:02.7]} 49... Rh6 {[%clk 0:01:03]} 50. Kg2
{[%clk 0:00:50.5]} 50... Rg6+ {[%clk 0:00:59.5]} 51. Kh2 {[%clk 0:00:48.3]}
51... Rh6+ {[%clk 0:00:58.4]} 52. Kg3 {[%clk 0:00:48.8]} 52... Rg6+ {[%clk
0:00:58.6]} 53. Kf3 {[%clk 0:00:45.3]} 53... Rh6 {[%clk 0:00:57.8]} 54. Rf8+
{[%clk 0:00:33]} 54... Kc7 {[%clk 0:00:56.4]} 55. Rf7+ {[%clk 0:00:33.5]} 55...
Kc8 {[%clk 0:00:54.4]} 56. Kg3 {[%clk 0:00:26.7]} 56... Rg6+ {[%clk 0:00:53.2]}
57. Kf2 {[%clk 0:00:25.9]} 57... a5 {[%clk 0:00:51.9]} 58. a4 {[%clk 0:00:23.6]}
58... Rh6 {[%clk 0:00:51.1]} 59. Kg3 {[%clk 0:00:22.8]} 59... Rg6+ {[%clk
0:00:46.8]} 60. Kf2 {[%clk 0:00:22.6]} 60... Rh6 {[%clk 0:00:44.1]} 61. Kg2
{[%clk 0:00:17.9]} 61... Rg6+ {[%clk 0:00:37.2]} 62. Kh3 {[%clk 0:00:16]} 62...
Rh6+ {[%clk 0:00:37.3]} 63. Kg3 {[%clk 0:00:15.7]} 63... Rg6+ {[%clk 0:00:34.4]}
64. Kf3 {[%clk 0:00:10.7]} 64... Rh6 {[%clk 0:00:32.8]} 65. Kg3 {[%clk
0:00:06.7]} 1/2-1/2